bitfinex/quotes_SOLUSD_20240604
["timestamp","ask_amount","ask_price","bid_price","bid_amount"]
[1717461749264,5.03,165.28,165.25,11.63201221]
[1717461749596,5.03,165.27,165.24,9.05301221]
[1717461749900,5.03,165.27,165.23,11.29668167]
[1717461750259,2.2384,165.3,165.24,2.2391]
[1717461750459,5.03,165.27,165.24,2.2391]
[1717461751065,8.6501,165.31,165.25,2.2389]
[1717461751381,5.03,165.28,165.25,2.2389]
[1717461753095,2.2383,165.3,165.25,2.2389]
[1717461753387,5.03,165.28,165.25,2.2389]
[1717461753795,5.03,165.28,165.24,2.2391]
[1717461755690,5.03,165.28,165.25,2.2389]
[1717461756284,5.03,165.29,165.25,2.2389]
[1717461757490,2.2382,165.31,165.25,2.2389]
[1717461757771,5.03,165.29,165.25,2.2389]
[1717461758186,7.2685,165.29,165.24,2.2391]
[1717461758366,5.03,165.28,165.23,11.63758357]
[1717461758781,5.03,165.27,165.23,11.63758357]
[1717461758983,5.03,165.27,165.23,2.5792]
[1717461760277,44.596,165.33,165.25,2.239]
[1717461760694,2.2382,165.31,165.25,2.239]
[1717461761368,2.2383,165.3,165.25,2.239]
[1717461762200,2.2383,165.3,165.24,2.2391]
[1717461763191,2.2384,165.29,165.24,2.2391]
[1717461763382,2.2384,165.29,165.23,11.63758357]
[1717461763697,2.2384,165.29,165.23,11.29758357]
[1717461764198,2.2384,165.29,165.23,2.2392]
[1717461765295,2.2384,165.29,165.24,2.2391]
[1717461766696,2.2383,165.3,165.25,2.239]
[1717461767974,2.2382,165.31,165.25,2.239]
[1717461768174,2.2383,165.3,165.25,2.239]
[1717461768779,2.2383,165.3,165.24,2.239]
[1717461770212,2.2386,165.28,165.23,9.05905476]
[1717461770382,5.03,165.26,165.21,9.05905476]
[1717461770578,5.03,165.25,165.22,2.2394]
[1717461770914,5.03,165.25,165.21,11.29855476]
[1717461771701,5.03,165.25,165.22,9.22905476]
[1717461771886,5.03,165.25,165.22,0.17]
[1717461773014,5.03,165.24,165.21,9.05905476]
[1717461773602,5.03,165.23,165.21,9.05905476]
[1717461774097,5.03,165.23,165.19,11.29875476]
[1717461774471,5.03,165.23,165.19,2.2397]
[1717461774776,5.03,165.22,165.18,11.46895476]
[1717461774983,5.03,165.22,165.18,9.22905476]
[1717461775800,7.2693,165.23,165.18,11.46895476]
[1717461776170,7.2693,165.23,165.18,2.4099]
[1717461779675,2.2392,165.24,165.19,2.4098]
[1717461779884,2.2392,165.24,165.19,0.17]
[1717461780097,5.03,165.23,165.19,0.34]
[1717461780478,7.2692,165.24,165.19,0.34]
[1717461782510,2.2393,165.23,165.19,0.34]
[1717461782698,2.2394,165.22,165.17,11.29905476]
[1717461782882,7.2694,165.22,165.17,11.29905476]
[1717461783085,7.2694,165.22,165.18,0.17]
[1717461783919,7.2693,165.23,165.18,0.17]
[1717461785293,6.5986,165.27,165.18,5.37]
[1717461785493,2.239,165.26,165.2,7.2696]
[1717461785706,7.269,165.26,165.21,2.5795]
[1717461786383,7.269,165.26,165.21,0.34]
[1717461786584,2.239,165.25,165.21,0.34]
[1717461786815,7.269,165.25,165.21,0.34]
[1717461789105,5.03,165.25,165.21,0.34]
[1717461789612,7.269,165.25,165.21,0.34]
[1717461790308,7.2689,165.26,165.21,0.34]
[1717461790810,2.239,165.25,165.21,0.34]
[1717461791607,7.2689,165.26,165.21,0.34]
[1717461791815,5.03,165.25,165.21,0.34]
[1717461792492,5.03,165.25,165.21,2.5795]
[1717461792711,7.2689,165.26,165.21,2.5795]
[1717461794113,11.0112,165.31,165.21,0.34]
[1717461794416,6.5347,165.31,165.22,5.03]
[1717461794609,17.7259,165.31,165.23,0.34]
[1717461794813,7.2685,165.29,165.23,7.6092]
[1717461795109,7.2685,165.29,165.24,2.2391]
[1717461795324,2.2385,165.29,165.24,2.2391]
[1717461795526,2.2385,165.29,165.25,0.17]
[1717461797102,7.2684,165.3,165.25,0.17]
[1717461797424,7.2683,165.3,165.25,2.5789]
[1717461798223,2.2383,165.3,165.25,2.5789]
[1717461798395,2.2382,165.31,165.26,2.2388]
[1717461798590,7.2682,165.31,165.25,7.6089]
[1717461798806,2.2383,165.3,165.25,23.1863814]
[1717461798999,5.03,165.31,165.26,2.2388]
[1717461799199,2.2381,165.32,165.26,2.2388]
[1717461799420,7.2681,165.32,165.27,0.34]
[1717461799703,2.2381,165.32,165.27,0.34]
[1717461800428,2.2381,165.32,165.27,2.5787]
[1717461802397,7.2682,165.31,165.27,0.34]
[1717461802604,5.03,165.3,165.27,0.34]
[1717461802808,7.2682,165.31,165.26,0.34]
[1717461803233,7.2682,165.31,165.26,2.5788]
[1717461803738,5.03,165.31,165.27,2.2387]
[1717461804238,7.2681,165.32,165.26,2.5788]
[1717461804941,7.2681,165.32,165.27,2.2387]
[1717461806435,7.2681,165.32,165.26,0.34]
[1717461806436,7.2681,165.32,165.26,2.5788]
[1717461808226,5.03,165.31,165.26,2.5788]
[1717461809442,5.03,165.31,165.26,8.7601]
[1717461809609,5.03,165.31,165.27,2.2387]
[1717461810010,2.238,165.33,165.27,2.2387]
[1717461810244,7.2678,165.34,165.29,2.2384]
[1717461810420,7.2678,165.34,165.28,2.4085]
[1717461812111,2.2376,165.36,165.31,2.2382]
[1717461812307,7.2676,165.36,165.31,2.2382]
[1717461812920,7.2676,165.36,165.3,2.2382]
[1717461813329,2.2376,165.36,165.3,2.2382]
[1717461813637,2.2376,165.36,165.3,7.2682]
[1717461813840,7.2676,165.36,165.31,0.34]
[1717461814037,2.2376,165.35,165.31,0.34]
[1717461816947,7.2675,165.36,165.31,0.34]
[1717461817255,2.2376,165.35,165.31,0.34]
[1717461820635,2.2375,165.36,165.31,0.34]
[1717461820826,7.2675,165.36,165.31,0.34]
[1717461821026,2.2376,165.35,165.31,0.34]
[1717461821243,2.2376,165.35,165.3,6.5732]
[1717461821845,2.2378,165.34,165.3,6.5732]
[1717461822048,7.268,165.33,165.27,2.2386]
[1717461822251,5.03,165.32,165.27,2.2386]
[1717461822549,7.2681,165.32,165.27,2.2386]
[1717461823126,5.03,165.32,165.27,2.2386]
[1717461823423,5.03,165.32,165.27,8.4718]
[1717461823627,5.03,165.32,165.28,0.17]
[1717461823859,5.03,165.32,165.28,0.34]
[1717461825152,7.268,165.33,165.28,0.34]
[1717461826556,7.268,165.32,165.28,0.34]
[1717461827561,2.2378,165.34,165.28,2.5786]
[1717461827731,5.03,165.32,165.28,2.5786]
[1717461827937,5.03,165.33,165.28,2.5786]
[1717461828137,7.2679,165.33,165.28,2.5786]
[1717461830064,5.03,165.31,165.28,0.17]
[1717461830252,5.03,165.31,165.27,8.4719]
[1717461830950,7.2682,165.31,165.26,11.62886598]
[1717461831159,7.2682,165.31,165.27,0.34]
[1717461832169,5.03,165.31,165.27,0.34]
[1717461833053,5.03,165.31,165.26,2.2388]
[1717461836068,5.03,165.31,165.27,2.2387]
[1717461836761,5.03,165.3,165.26,2.2388]
[1717461838078,5.03,165.3,165.25,2.5789]
[1717461838274,5.03,165.29,165.25,2.5789]
[1717461839084,7.2685,165.29,165.24,2.239]
[1717461839387,5.03,165.28,165.24,2.239]
[1717461841463,2.2384,165.3,165.25,2.239]
[1717461841776,5.03,165.3,165.26,0.17]
[1717461842076,7.2683,165.3,165.26,0.17]
[1717461842275,7.2683,165.3,165.24,2.2391]
[1717461842449,5.03,165.29,165.25,0.34]
[1717461842857,7.2685,165.29,165.25,0.34]
[1717461843066,7.2685,165.29,165.24,2.2391]
[1717461843478,7.2685,165.29,165.23,2.5792]
[1717461843883,5.03,165.28,165.23,2.5792]
[1717461844867,5.03,165.28,165.24,2.2391]
[1717461845884,7.2686,165.28,165.23,9.39006598]
[1717461846085,7.2686,165.28,165.23,9.05006598]
[1717461846383,5.03,165.27,165.23,11.28926598]
[1717461846586,5.03,165.27,165.23,2.2392]
[1717461847396,5.03,165.25,165.21,11.28956598]
[1717461847561,7.2689,165.26,165.22,0.17]
[1717461848178,5.03,165.26,165.22,0.17]
[1717461849685,5.03,165.26,165.22,2.4094]
[1717461852287,5.03,165.26,165.22,2.2394]
[1717461852598,5.03,165.26,165.21,2.2395]
[1717461853691,5.03,165.26,165.22,2.2394]
[1717461854199,2.2388,165.27,165.22,2.2394]
[1717461854379,5.03,165.27,165.23,2.2393]
[1717461856600,7.2687,165.27,165.22,2.2393]
[1717461859115,5.03,165.25,165.21,2.2395]
[1717461860498,2.2392,165.24,165.18,9.05006598]
[1717461860823,7.2692,165.24,165.17,14.08006598]
[1717461861021,7.2692,165.24,165.19,2.2397]
[1717461861695,5.03,165.24,165.2,0.17]
[1717461861895,5.03,165.24,165.2,0.34]
[1717461863794,5.03,165.24,165.2,2.5796]
[1717461863998,2.2389,165.26,165.21,2.2395]
[1717461864303,7.2689,165.26,165.21,2.2395]
[1717461865340,2.2387,165.28,165.2,5.37]
[1717461865621,2.2387,165.28,165.23,2.2393]
[1717461866189,2.2385,165.29,165.24,2.2391]
[1717461866397,2.2384,165.3,165.25,2.239]
[1717461867322,2.2384,165.3,165.25,5.03]
[1717461867624,2.2384,165.3,165.24,7.6091]
[1717461868395,2.2384,165.3,165.25,7.269]
[1717461868614,7.2681,165.32,165.26,7.6088]
[1717461868819,2.2381,165.32,165.26,7.4388]
[1717461869328,2.2382,165.31,165.26,7.4388]
[1717461870831,2.2382,165.31,165.27,0.17]
[1717461871531,7.2681,165.32,165.27,0.17]
[1717461871698,2.2378,165.34,165.29,2.2384]
[1717461871898,7.2678,165.34,165.29,2.2384]
[1717461872394,7.2678,165.34,165.28,7.4385]
[1717461872607,7.2678,165.34,165.29,0.34]
[1717461872834,7.2678,165.34,165.29,2.5784]
[1717461873425,2.2378,165.34,165.29,2.5784]
[1717461873740,7.2678,165.34,165.29,0.34]
[1717461874124,2.2379,165.33,165.29,0.34]
[1717461876033,2.2378,165.34,165.29,2.5784]
[1717461876235,2.2378,165.34,165.29,0.34]
[1717461876435,5.03,165.33,165.29,0.34]
[1717461876830,5.03,165.32,165.29,0.17]
[1717461877038,5.03,165.32,165.28,2.2386]
[1717461878739,2.238,165.33,165.28,2.2386]
[1717461878921,5.03,165.32,165.28,2.2386]
[1717461880447,5.03,165.33,165.28,2.2386]
[1717461882249,5.03,165.33,165.29,2.2384]
[1717461883042,2.2378,165.34,165.29,2.2384]
[1717461883224,5.03,165.33,165.29,2.2384]
[1717461883929,2.2378,165.34,165.29,2.2384]
[1717461884129,7.2678,165.34,165.29,2.2384]
[1717461884532,2.2378,165.34,165.29,2.2384]
[1717461884752,7.2678,165.34,165.29,2.2384]
[1717461884944,2.2378,165.34,165.29,2.2384]
[1717461885350,7.2678,165.34,165.29,2.2384]
[1717461886533,7.2679,165.33,165.28,2.2385]
[1717461886731,7.2679,165.33,165.29,0.34]
[1717461887857,2.2378,165.34,165.29,2.5784]
[1717461889252,7.2678,165.34,165.29,2.5784]
[1717461891035,7.2679,165.33,165.29,0.34]
[1717461891358,5.03,165.31,165.29,0.17]
[1717461891556,5.03,165.31,165.28,2.5786]
[1717461891858,35.6631,165.36,165.28,2.5786]
[1717461891859,2.2378,165.34,165.29,2.2384]
[1717461892035,5.03,165.33,165.29,2.2384]
[1717461894661,2.2378,165.34,165.29,2.2384]
[1717461894830,5.03,165.33,165.29,2.2384]
[1717461896041,5.03,165.33,165.28,2.5785]
[1717461896249,7.2679,165.33,165.28,2.5785]
[1717461897347,5.03,165.32,165.28,2.5785]
[1717461897860,5.03,165.31,165.28,2.5785]
[1717461898644,5.03,165.31,165.28,2.4085]
[1717461898848,5.03,165.31,165.28,0.17]
[1717461899050,5.03,165.3,165.24,129.04733082]
[1717461899252,5.03,165.3,165.25,0.34]
[1717461899448,5.03,165.3,165.26,2.2388]
[1717461899669,5.03,165.3,165.27,0.34]
[1717461900058,5.03,165.3,165.27,2.5787]
[1717461900554,5.03,165.31,165.27,2.5787]
[1717461900873,5.03,165.3,165.27,2.5787]
[1717461901657,5.03,165.3,165.27,0.17]
[1717461901847,2.2382,165.31,165.25,2.2389]
[1717461901848,5.03,165.29,165.25,2.2389]
[1717461902048,5.03,165.29,165.26,0.34]
[1717461903053,5.03,165.29,165.25,2.2389]
[1717461903656,5.03,165.29,165.24,11.28582529]
[1717461903657,2.2385,165.29,165.24,11.28582529]
[1717461903862,5.03,165.27,165.24,2.2391]
[1717461905574,5.03,165.27,165.23,8.7648]
[1717461906081,5.03,165.27,165.23,2.4092]
[1717461906949,5.03,165.25,165.22,0.17]
[1717461907152,5.03,165.25,165.21,0.34]
[1717461907377,5.03,165.25,165.21,2.5795]
[1717461907878,5.03,165.24,165.21,2.5795]
[1717461908953,2.2388,165.27,165.22,2.2394]
[1717461909161,2.2388,165.27,165.21,2.5795]
[1717461909162,5.03,165.25,165.21,2.5795]
[1717461910260,2.2386,165.28,165.21,0.34]
[1717461910563,5.03,165.27,165.21,14.41967476]
[1717461910875,2.2386,165.28,165.21,14.41967476]
[1717461910876,5.03,165.26,165.22,2.2393]
[1717461911171,5.03,165.26,165.21,9.38967476]
[1717461911172,5.03,165.26,165.21,11.62917476]
[1717461911374,5.03,165.25,165.21,2.5795]
[1717461915379,5.03,165.25,165.21,0.34]
[1717461915963,7.269,165.25,165.21,0.17]
[1717461916183,5.03,165.24,165.21,0.17]
[1717461916673,5.03,165.25,165.21,0.17]
[1717461918097,2.2389,165.26,165.21,2.4095]
[1717461918293,5.03,165.25,165.21,2.4095]
[1717461919887,2.2388,165.27,165.21,2.4095]
[1717461920094,4.4759,165.33,165.24,2.2391]
[1717461920387,2.2384,165.3,165.24,2.2391]
[1717461920561,5.03,165.29,165.24,2.2391]
[1717461920760,7.2685,165.29,165.23,2.4092]
[1717461920966,7.2686,165.28,165.24,0.17]
[1717461921281,5.03,165.28,165.24,0.17]
[1717461921883,5.03,165.27,165.24,0.17]
[1717461926909,5.03,165.26,165.22,2.2393]
[1717461927908,2.2386,165.28,165.23,2.2392]
[1717461928201,5.03,165.26,165.23,2.2392]
[1717461929296,5.03,165.26,165.22,2.2393]
[1717461929495,5.03,165.25,165.21,0.34]
[1717461929686,5.03,165.25,165.21,2.2395]
[1717461930899,5.03,165.25,165.2,0.34]
[1717461932208,5.03,165.25,165.21,2.2395]
[1717461934185,5.03,165.25,165.2,2.5796]
[1717461934607,2.2389,165.26,165.2,2.5796]
[1717461934786,5.03,165.25,165.2,2.5796]
[1717461935711,5.03,165.25,165.2,2.4096]
[1717461935896,5.03,165.23,165.19,8.4019]
[1717461936103,2.239,165.25,165.2,2.2397]
[1717461936296,5.03,165.23,165.2,2.2397]
[1717461938115,5.03,165.23,165.19,8.402]
[1717461940798,5.03,165.22,165.19,2.2398]
[1717461942612,2.2391,165.24,165.19,2.2398]
[1717461942821,5.03,165.22,165.19,2.2398]
[1717461943694,2.2391,165.25,165.19,2.2398]
[1717461943924,2.2391,165.25,165.19,8.482]
[1717461943925,5.03,165.24,165.19,8.482]
[1717461944495,5.03,165.23,165.19,8.482]
[1717461944718,5.03,165.23,165.19,2.2398]
[1717461945023,5.03,165.22,165.19,2.2398]
[1717461945207,5.03,165.21,165.18,11.28947913]
[1717461945716,5.03,165.21,165.18,9.04957913]
[1717461945916,5.03,165.2,165.18,9.04957913]
[1717461946622,5.03,165.2,165.17,11.28957913]
[1717461947512,5.03,165.2,165.17,2.24]
[1717461948717,5.03,165.2,165.17,11.28957913]
[1717461948897,5.03,165.2,165.17,2.24]
[1717461949197,5.03,165.2,165.16,9.04957913]
[1717461949400,5.03,165.2,165.17,9.04957913]
[1717461949795,5.03,165.2,165.16,9.04957913]
[1717461949993,5.03,165.2,165.16,11.28977913]
[1717461950836,5.03,165.2,165.17,9.04957913]
[1717461951017,5.03,165.2,165.17,9.04963718]
[1717461953126,5.03,165.2,165.16,11.28983718]
[1717461956318,2.2396,165.21,165.16,11.28983718]
[1717461956524,2.2395,165.22,165.17,2.24]
[1717461956819,5.03,165.2,165.16,11.28973718]
[1717461957512,5.03,165.2,165.16,2.2401]
[1717461957708,5.03,165.2,165.16,11.28973718]
[1717461958113,5.03,165.2,165.16,2.2401]
[1717461958312,5.03,165.2,165.16,11.28973718]
[1717461959615,2.2395,165.22,165.17,8.7489]
[1717461959815,2.2391,165.25,165.2,2.2397]
[1717461960027,5.03,165.24,165.2,2.2397]
[1717461960315,2.2391,165.25,165.2,2.2397]
[1717461960719,2.2388,165.27,165.2,6.3051]
[1717461960926,2.2386,165.28,165.23,2.2392]
[1717461961231,5.03,165.27,165.23,2.2392]
[1717461961419,2.2385,165.29,165.23,2.2392]
[1717461961726,2.2385,165.29,165.21,14.41963718]
[1717461961727,5.03,165.28,165.24,2.4091]
[1717461962228,5.03,165.29,165.24,2.4091]
[1717461962428,0.03775385,165.39,165.25,2.409]
[1717461962429,17.02438642,165.34,165.25,2.409]
[1717461962725,10.37338642,165.34,165.26,2.2387]
[1717461962918,2.238,165.33,165.27,2.2386]
[1717461963227,7.268,165.33,165.27,2.2386]
[1717461963418,7.268,165.32,165.27,2.2386]
[1717461963626,5.03,165.31,165.27,2.2386]
[1717461963817,5.03,165.31,165.26,2.4088]
[1717461964017,20.478658,165.36,165.27,2.2387]
[1717461964018,2.238,165.33,165.27,2.2387]
[1717461964349,2.238,165.33,165.28,6.2187]
[1717461964636,5.03,165.32,165.28,6.2187]
[1717461964801,7.268,165.33,165.28,6.2187]
[1717461967023,2.2378,165.34,165.28,2.2385]
[1717461967223,7.2678,165.34,165.3,6.5186]
[1717461967903,2.2379,165.33,165.27,7.2687]
[1717461968104,5.03,165.3,165.26,2.2388]
[1717461968419,5.03,165.3,165.27,0.17]
[1717461968615,2.2379,165.33,165.27,2.4086]
[1717461968824,5.03,165.32,165.28,6.5918]
[1717461969233,7.2679,165.33,165.28,6.5918]
[1717461969610,5.03,165.33,165.28,8.8303]
[1717461969809,7.2678,165.34,165.29,6.1837]
[1717461970609,2.2379,165.33,165.29,6.1837]
[1717461970914,7.2679,165.33,165.29,6.1837]
[1717461971126,5.03,165.32,165.29,6.1837]
[1717461971312,2.2379,165.33,165.29,6.1837]
[1717461971518,5.03,165.32,165.29,6.1837]
[1717461971843,5.03,165.32,165.29,6.0137]
[1717461972018,7.268,165.32,165.28,0.17]
[1717461972223,7.268,165.32,165.28,0.34]
[1717461972829,5.03,165.32,165.28,6.4456]
[1717461973036,7.2679,165.33,165.28,19.0918]
[1717461973338,7.2679,165.33,165.29,6.1056]
[1717461973929,5.03,165.32,165.29,6.1056]
[1717461974830,5.03,165.32,165.28,16.8533]
[1717461975435,5.03,165.32,165.28,25.1269]
[1717461976532,2.2379,165.33,165.28,25.1269]
[1717461976734,7.2679,165.33,165.29,6.5567]
[1717461977119,5.03,165.33,165.29,6.5567]
[1717461977727,7.2678,165.34,165.29,6.5567]
[1717461977920,21.0052502,165.38,165.29,6.5567]
[1717461978131,14.5760502,165.38,165.3,2.5782]
[1717461978328,2.2376,165.36,165.3,7.6082]
[1717461978531,7.2676,165.36,165.3,2.5782]
[1717461978733,7.2676,165.36,165.3,7.6082]
[1717461978934,2.2376,165.36,165.3,7.6082]
[1717461979127,7.2676,165.36,165.3,7.6082]
[1717461979328,2.2376,165.36,165.31,2.2381]
[1717461979647,8.4193502,165.38,165.33,23.6538]
[1717461979854,3.3893502,165.38,165.33,23.6538]
[1717461980058,3.3893502,165.38,165.34,6.3189]
[1717461980732,8.4193502,165.38,165.34,6.3189]
[1717461980926,5.03,165.37,165.32,9.1837]
[1717461981652,5.03,165.36,165.32,9.1837]
[1717461982748,5.03,165.37,165.33,2.2379]
[1717461983432,6.1820502,165.38,165.33,8.7258]
[1717461983824,1.1520502,165.38,165.34,2.2378]
[1717461984029,1.1520502,165.38,165.34,8.569]
[1717461984244,1.1520502,165.38,165.35,0.45640587]
[1717461985938,1.1520502,165.38,165.35,8.92500587]
[1717461986159,1.1520502,165.38,165.36,0.45639726]
[1717461987763,6.1820502,165.38,165.33,8.5364]
[1717461987967,6.1820502,165.38,165.34,0.34]
[1717461988477,1.1520502,165.38,165.34,0.34]
[1717461988849,6.1820502,165.38,165.34,0.34]
[1717461989049,1.1520502,165.38,165.34,2.5778]
[1717461989460,6.1820502,165.38,165.34,2.5778]
[1717461989954,1.1520502,165.38,165.34,2.5778]
[1717461990155,6.1820502,165.38,165.34,2.5778]
[1717461990378,1.1520502,165.38,165.34,2.5778]
[1717461990566,1.1520502,165.38,165.35,2.2376]
[1717461990895,1.1520502,165.38,165.35,22.1867]
[1717461991047,1.1520502,165.38,165.36,8.8342]
[1717461991248,1.1520502,165.38,165.37,2.2374]
[1717461991880,1.1520502,165.38,165.36,8.8342]
[1717461995265,1.1520502,165.38,165.36,0.34]
[1717461995657,1.1520502,165.38,165.35,6.8228]
[1717461997400,0.60477775,165.36,165.35,9.0604]
[1717462001194,0.60477775,165.36,165.35,0.34]
[1717462001764,0.60477775,165.36,165.35,0.17]
[1717462002891,0.60477775,165.36,165.35,2.4076]
[1717462004365,0.60477775,165.36,165.35,2.5776]
[1717462005689,0.60477775,165.36,165.35,7.6076]
[1717462005892,0.60477775,165.36,165.35,2.5776]
[1717462006290,0.60477775,165.36,165.35,9.0036]
[1717462011875,0.60477775,165.36,165.35,14.0336]
[1717462013207,0.60477775,165.36,165.35,9.0036]
[1717462013382,0.60477775,165.36,165.35,2.5776]
[1717462013980,0.60477775,165.36,165.35,0.34]
[1717462014380,0.60477775,165.36,165.35,2.5776]
[1717462015684,0.60477775,165.36,165.35,0.17]
[1717462015890,0.60477775,165.36,165.34,0.17]
[1717462016091,0.60477775,165.36,165.34,2.4077]
[1717462016799,0.60477775,165.36,165.35,2.2376]
[1717462016990,0.60477775,165.36,165.35,2.5776]
[1717462020781,0.60477775,165.36,165.33,9.02998934]
[1717462020991,5.03,165.34,165.31,9.02998934]
[1717462021306,2.84227775,165.36,165.3,2.2382]
[1717462021307,2.2376,165.35,165.3,2.2382]
[1717462021494,5.03,165.34,165.3,2.2382]
[1717462022010,5.03,165.33,165.3,2.2382]
[1717462024422,5.03,165.32,165.29,0.17]
[1717462024985,2.2377,165.35,165.29,2.4084]
[1717462025181,5.03,165.32,165.29,2.4084]
[1717462026419,5.03,165.33,165.29,2.4084]
[1717462028907,11.4881,165.33,165.28,0.17]
[1717462029113,5.03,165.31,165.28,0.17]
[1717462029430,5.03,165.31,165.27,2.2386]
[1717462029804,5.03,165.3,165.27,2.2386]
[1717462030709,5.03,165.3,165.28,2.2386]
[1717462030897,5.03,165.31,165.28,2.2386]
[1717462031300,5.03,165.32,165.28,2.2386]
[1717462031531,6.4581,165.33,165.28,2.2386]
[1717462031745,0.60477775,165.36,165.29,0.17]
[1717462031953,0.60477775,165.36,165.29,0.34]
[1717462032239,0.60477775,165.36,165.31,5.03]
[1717462032445,0.60477775,165.36,165.35,2.2376]
[1717462032743,0.60477775,165.36,165.35,2.5776]
[1717462033341,0.60477775,165.36,165.35,0.34]
[1717462033734,0.60477775,165.36,165.35,2.5776]
[1717462034757,0.60477775,165.36,165.35,7.6076]
[1717462037326,0.60477775,165.36,165.35,50.3851]
[1717462037524,0.60477775,165.36,165.35,70.4147]
[1717462037729,0.60477775,165.36,165.35,90.4147]
[1717462039024,0.60477775,165.36,165.35,85.3847]
[1717462039252,0.60477775,165.36,165.35,90.4147]
[1717462039653,0.60477775,165.36,165.35,99.45562804]
[1717462039955,0.60477775,165.36,165.35,91.35313339]
[1717462040253,0.60477775,165.36,165.35,107.01683339]
[1717462043425,0.60477775,165.36,165.35,108.39511121]
[1717462044431,0.60477775,165.36,165.35,99.3654]
[1717462045439,0.60477775,165.36,165.35,115.10954553]
[1717462045877,0.60477775,165.36,165.35,106.0784]
[1717462049544,0.60477775,165.36,165.35,90.5241]
[1717462054199,0.60477775,165.36,165.35,124.7468]
[1717462055778,0.60477775,165.36,165.35,125.68581799]
[1717462056169,0.60477775,165.36,165.35,124.7468]
[1717462057571,0.60477775,165.36,165.35,119.7168]
[1717462057765,0.60477775,165.36,165.35,108.6741]
[1717462057963,0.60477775,165.36,165.35,178.6666]
[1717462058168,0.60477775,165.36,165.35,183.6966]
[1717462059397,0.60477775,165.36,165.35,203.8666]
[1717462059568,0.60477775,165.36,165.35,204.0366]
[1717462060390,0.60477775,165.36,165.35,210.6849]
[1717462061781,0.60477775,165.36,165.35,327.89513288]
[1717462064367,0.60477775,165.36,165.35,311.96753288]
[1717462067881,0.60477775,165.36,165.35,282.13923288]
[1717462068079,0.60477775,165.36,165.35,287.16923288]
[1717462069398,0.60477775,165.36,165.35,305.31923288]
[1717462069782,0.60477775,165.36,165.35,311.53253288]
[1717462070280,0.60477775,165.36,165.35,312.47202983]
[1717462071789,0.60477775,165.36,165.35,307.44202983]
[1717462072190,0.60477775,165.36,165.35,312.47202983]
[1717462072387,0.60477775,165.36,165.35,312.47212292]
[1717462073302,0.24477775,165.36,165.35,312.47212292]
[1717462073508,0.24477775,165.36,165.35,328.63422292]
[1717462074978,1.1520502,165.38,165.37,196.814]
[1717462075207,1.1520502,165.38,165.37,222.78359004]
[1717462077202,1.1520502,165.38,165.37,223.12359004]
[1717462077383,1.75675481,165.38,165.37,223.12359004]
[1717462078786,1.75675481,165.38,165.37,229.50039004]
[1717462081804,1.75675481,165.38,165.37,312.62296879]
[1717462083208,0.8089712,165.54,165.45,120.0]
[1717462083517,6.5908,165.49,165.47,2.236]
[1717462083683,6.5908,165.49,165.48,2.2359]
[1717462084087,6.5908,165.49,165.46,5.03]
[1717462084322,6.5908,165.49,165.47,2.2359]
[1717462085294,6.5908,165.49,165.48,2.4059]
[1717462085805,6.5908,165.49,165.48,2.5759]